Cogmind - Beta 16 @@@ ROGUE MODE // 2025.12.31 @ 00:53:21 Player: souux Result: Self-destructed Performance ------------- Evolutions (3) 1500 Regions Visited (9) 1800 Robots Destroyed (110) 550 Value Destroyed (2949) 2949 Prototype IDs (9) 180 Alien Tech Used (0) 0 Bonus (354) 354 TOTAL SCORE: 7333 Bonus ------- High Alert Combat Kills 84 Follower Combat Kills 70 Entered Garrisons 200 Cogmind --------- Core Integrity 478/700 Matter 265/300 Energy 125/125 System Corruption 14% Temperature Cool (0) Movement Flying (29) Location -7/Lower Caves Parts ------- > --- POWER (1) -------- Light Ion Engine > --- PROPULSION (4) --- Xenon Bombardment Thruster Improved Cesium-ion Thruster Improved Cesium-ion Thruster Improved Cesium-ion Thruster > --- UTILITY (5) ------ Core Analyzer Improved Medium Armor Plating Hacking Suite > --- WEAPON (3) ------- Katana > --- INVENTORY (5) ---- Large Storage Unit Force Booster Advanced EMP Blaster Peak State ------------ > --- POWER ------------ Heavy Ion Engine > --- PROPULSION ------- Light Treads Light Treads Light Treads Advanced Treads > --- UTILITY ---------- High-capacity Storage Unit Advanced Targeting Computer Improved Medium Armor Plating Hacking Suite System Restoration Module > --- WEAPON ----------- Enhanced Autogun Enhanced Autogun Enhanced Autogun > --- INVENTORY -------- Improved Ion Engine Armored Treads Armored Treads Large Storage Unit High-capacity Matter Pod Advanced Terrain Scan Processor Improved Medium Armor Plating Improved Medium Armor Plating Hacking Suite Hacking Suite Hacking Suite Gatling Laser Enhanced Autogun Enhanced Autogun Advanced EMP Blaster Katana [Rating: 41] Favorites ----------- Power Ion Engine Engine Ion Engine Propulsion Light Treads Treads Light Treads Leg Aluminum Leg Flight Unit Improved Cesium-ion Thruster Utility Cooling System Device Cooling System Storage Large Storage Unit Processor Advanced Targeting Computer Hackware Hacking Suite Protection Hardened Light Armor Plating Weapon Improved Medium Laser Energy Gun Improved Medium Laser Energy Cannon Subdweller Beam Cannon Ballistic Gun Enhanced Autogun Launcher Advanced EMP Blaster Slashing Weapon Katana Build | -11 -10 -10 -8 -8 -8 -7 -7 -7 -7 ------- Run | Yrd Mat Sub Mat Gar Mat Fac Was Fac Low Slots Evolved 6 | . . . 4 . . 2 . . . Power . | . . . . . . . . . . Propulsion 2 | . . . 1 . . 1 . . . Utility 3 | . . . 2 . . 1 . . . Weapon 1 | . . . 1 . . . . . . Parts Attached 76 | 7 15 5 9 4 21 7 . 8 . Power 10 | 1 2 1 2 . 3 . . 1 . Engine 10 | 1 2 1 2 . 3 . . 1 . Core . | . . . . . . . . . . Reactor . | . . . . . . . . . . Propulsion 29 | 2 6 3 2 1 10 1 . 4 . Treads 22 | . 6 3 2 1 9 1 . . . Leg 2 | 2 . . . . . . . . . Wheel . | . . . . . . . . . . Hover . | . . . . . . . . . . Flight 5 | . . . . . 1 . . 4 . Utility 20 | 2 4 . 3 2 2 4 . 3 . Device 5 | 1 1 . 1 1 . 1 . . . Storage 3 | 1 1 . . . 1 . . . . Processor 2 | . . . 1 . . . . 1 . Hackware 3 | . . . . 1 . 1 . 1 . Protection 7 | . 2 . 1 . 1 2 . 1 . Artifact . | . . . . . . . . . . Weapon 17 | 2 3 1 2 1 6 2 . . . Energy Gun 6 | . 3 . 2 . . 1 . . . Energy Cannon 1 | . . 1 . . . . . . . Ballistic Gun 8 | 2 . . . 1 5 . . . . Ballistic Cannon . | . . . . . . . . . . Launcher 1 | . . . . . 1 . . . . Special Weapon . | . . . . . . . . . . Impact Weapon . | . . . . . . . . . . Slashing Weapon 1 | . . . . . . 1 . . . Piercing Weapon . | . . . . . . . . . . Special Melee Weapon . | . . . . . . . . . . Unidentified Prototypes 8 | . 1 . . . 5 1 . 1 . Parts Lost 8 | . 1 2 1 2 . . 2 . . Power 1 | . . . 1 . . . . . . Propulsion 4 | . . 1 . 1 . . 2 . . Utility 2 | . 1 . . 1 . . . . . Weapon 1 | . . 1 . . . . . . . Highest Loss Streak 2 | . 1 1 1 2 . . 2 . . To Critical Strikes 1 | . . . . 1 . . . . . Average Backups 12 | 3 8 13 8 10 14 15 14 3 . Power . | . 1 . . 1 1 1 . . . Propulsion 2 | 2 3 3 1 1 3 2 1 . . Utility 5 | . 3 7 5 4 6 7 7 2 . Weapon 2 | . . 2 2 2 3 4 4 1 . Tool/Special . | . . . . . . . . . . Unused Backups 20 | . 2 . . . 4 1 11 . 2 Power 1 | . . . . . . . 1 . . Propulsion 5 | . 2 . . . 1 . 2 . . Utility 6 | . . . . . . 1 4 . 1 Weapon 8 | . . . . . 3 . 4 . 1 Tool/Special . | . . . . . . . . . . Average Slot Usage (%) 97 | . 99 99 98 99 99 99 73 29 . Engine 11 | . 13 14 9 9 8 7 5 1 . Treads 26 | . 23 27 27 26 26 30 21 . . Device 9 | . 9 14 16 8 4 6 . . . Storage 11 | . 14 14 9 9 9 7 5 . . Processor 3 | . . . 1 9 9 7 5 6 . Hackware 3 | . . . . 7 9 7 11 4 . Protection 3 | . 4 . 8 1 4 7 4 . . Energy Gun 13 | . 17 18 26 21 7 . . . . Energy Cannon 3 | . . 9 . 2 . . . . . Ballistic Gun 8 | . 10 . . 3 19 22 17 . . Peak Build Rating 41 | 7 14 15 25 26 33 41 40 34 . Average Rating 19 | 5 10 13 21 25 28 38 28 15 . On Entrance 19 | . 7 14 13 25 26 31 40 1 34 Avg Prop Armor Cover (%) 6 | . . . . . . . . 6 . Naked Turns 39 | . . . . . . . 34 5 . Heaviest Build 66 | 15 33 38 46 45 42 66 64 12 . Greatest Support 82 | 20 40 40 60 60 60 82 82 18 . Greatest Overweight (x) 1 | . 1 . . 1 1 . . . . Average Overweight (x) . | . . . . . . . . . . Largest Inventory Capacity 20 | 8 15 15 15 15 20 20 20 5 . Average Capacity 14 | 7 10 15 15 15 15 19 15 5 . Most Carried 18 | 7 15 15 12 13 15 18 18 5 . Average Carried 12 | 3 8 13 8 10 14 15 14 3 . Final Capacity 20 | 8 15 15 15 15 15 20 5 5 5 Final Carried 18 | 7 14 13 9 13 15 18 5 3 3 Class Distribution -------------------- 58% | Mutant 29% | Gunner 6% | Scavenger-Gunner Dominant Class ---------------- Mutant | -10/Materials Mutant | -10/Subcaves Tank | -8/Materials Gunner | -8/Garrison Scavenger-Gunner | -8/Materials Gunner | -7/Factory Hacker-Gunner | -7/Waste Mutant | -7/Factory Mutant | -7/Lower Caves Resources | -11 -10 -10 -8 -8 -8 -7 -7 -7 -7 ----------- Run | Yrd Mat Sub Mat Gar Mat Fac Was Fac Low Matter Collected 2415 | 306 409 50 85 96 916 466 . 87 . Remotely . | . . . . . . . . . . Salvage Created 4390 | 101 923 365 438 649 1308 553 . 53 . Parts 208 | 10 34 20 14 30 56 37 . 7 . Haulers Intercepted 6 | . 1 . . . 4 1 . . . Recyclers Shooed 3 | . . . 1 . 1 1 . . . Parts Field Recycled . | . . . . . . . . . . Retrieved Matter . | . . . . . . . . . . Parts Self-Destructed 11 | . . 11 . . . . . . . Prevented . | . . . . . . . . . . Parts Restored . | . . . . . . . . . . Kills | -11 -10 -10 -8 -8 -8 -7 -7 -7 -7 ------- Run | Yrd Mat Sub Mat Gar Mat Fac Was Fac Low Combat Hostiles Destroyed 75 | . 14 12 6 17 18 8 . . . Guns 64 | . 13 6 6 13 18 8 . . . Cannons 9 | . . 6 . 3 . . . . . AOE 1 | . 1 . . . . . . . . Classes Destroyed 13 | 2 5 2 1 . 2 1 . . . Worker 4 | . 1 . . . 1 . . 2 . Builder 2 | . . . . . 1 1 . . . Tunneler 3 | 3 . . . . . . . . . Hauler 6 | . 1 . . . 4 1 . . . Recycler 10 | 1 2 . 2 . 5 . . . . Operator 3 | . 3 . . . . . . . . Watcher 7 | . 3 . . . 1 3 . . . Swarmer 20 | . . 5 2 6 7 . . . . Grunt 33 | . 14 . 3 7 6 3 . . . Brawler 1 | . . . . . 1 . . . . Sentry 11 | . . . 1 4 4 2 . . . Programmer 3 | . . . . . . 3 . . . Subdweller 7 | . . 7 . . . . . . . Best Kill Streak 7 | 2 4 4 7 4 7 4 . 2 . Combat Bots Only 5 | . 4 4 5 4 4 3 . . . Max Kills in Single Turn 3 | 1 1 1 2 2 3 2 . 1 . Gunslinging 1 | . . . 1 1 . . . . . Exploded 1 | . 1 . . . . . . . . Melee . | . . . . . . . . . . Uniques/NPCs Destroyed . | . . . . . . . . . . Combat | -11 -10 -10 -8 -8 -8 -7 -7 -7 -7 -------- Run | Yrd Mat Sub Mat Gar Mat Fac Was Fac Low Hostile Shots Fired 372 | . 90 62 28 58 37 56 4 37 . Missed 134 | . 26 20 6 17 11 31 . 23 . Hits 238 | . 64 42 22 41 26 25 4 14 . Melee 4 | . . . . . . . 4 . . Projectile 234 | . 64 42 22 41 26 25 . 14 . Critical Strikes 7 | . 1 2 . 1 . 1 2 . . Damage Taken 3486 | . 838 896 282 547 333 245 209 136 . Core 552 | . 138 107 41 32 12 16 162 44 . Absorbed by Shields . | . . . . . . . . . . Regen/Repaired (Parts) 120 | . . . . . 120 . . . . Core Remaining (%) 62 | 100 . 2 . . 84 . . . . Volleys Fired 258 | 6 76 44 15 33 55 28 1 . . Largest 3 | 2 2 2 3 3 3 3 3 . . Hottest 192 | 40 112 136 168 192 140 75 75 . . Shots Fired 613 | 12 152 78 45 88 151 84 3 . . Gun 577 | 12 152 49 45 81 151 84 3 . . Cannon 36 | . . 29 . 7 . . . . . Launcher . | . . . . . . . . . . Special . | . . . . . . . . . . Kinetic 310 | 12 78 . . 14 119 84 3 . . Thermal 271 | . 42 78 45 74 32 . . . . Explosive . | . . . . . . . . . . Electromagnetic 32 | . 32 . . . . . . . . Robot Hit Streak 25 | 7 15 25 12 12 18 9 4 . . Robot Miss Streak 5 | 1 3 5 4 4 5 3 . . . Penetration Max . | . . . . . . . . . . Secondary Targets 12 | . 3 . 1 5 2 1 . . . Max Gunslinging Chain 1 | . 1 . 1 1 1 1 . . . Shots Hit Robots 401 | 8 100 54 31 58 94 51 3 2 . Core Hits 167 | 5 37 16 13 25 42 28 . 1 . Critical Kills 1 | . . . . . . 1 . . . Critical Parts Destroyed 1 | . 1 . . . . . . . . Critical Strikes 22 | . 6 5 2 6 2 1 . . . Burn 19 | . 4 5 2 6 2 . . . . Destroy 2 | . 1 . . . . 1 . . . Corrupt 1 | . 1 . . . . . . . . Melee Attacks 9 | . . . . . . 1 . 8 . Impact . | . . . . . . . . . . Slashing 9 | . . . . . . 1 . 8 . Piercing . | . . . . . . . . . . Sneak Attacks 2 | . . . . . . . . 2 . Combat Hostiles . | . . . . . . . . . . Follow-up Attacks . | . . . . . . . . . . Damage Inflicted 7238 | 99 1492 1059 528 1106 1792 981 51 130 . Guns 6500 | 99 1424 628 528 997 1792 981 51 . . Cannons 540 | . . 431 . 109 . . . . . Explosions 68 | . 68 . . . . . . . . Melee 130 | . . . . . . . . 130 . Ramming . | . . . . . . . . . . Kinetic 3372 | 99 673 . . 160 1408 981 51 . . Thermal 3392 | . 475 1059 528 946 384 . . . . Explosive . | . . . . . . . . . . Electromagnetic 344 | . 344 . . . . . . . . Impact . | . . . . . . . . . . Slashing 130 | . . . . . . . . 130 . Piercing . | . . . . . . . . . . Highest Corruption 14 | . . . . . . 4 14 14 . Average Corruption 6 | . . . . . . 1 12 14 . Corruption Purged 1 | . . . . . . 1 . . . Corruption Blocked . | . . . . . . . . . . Effects 17 | . . . . . . 4 4 9 . Message Errors 5 | . . . . . . 1 1 3 . Matter Fused 1 | . . . . . . . 1 . . Heat Flow Errors 4 | . . . . . . 3 . 1 . Energy Discharges 1 | . . . . . . . . 1 . Parts Fused 1 | . . . . . . . 1 . . Data Loss (minor) 1 | . . . . . . . . 1 . Misdirections 4 | . . . . . . . 1 3 . Overload Shots . | . . . . . . . . . . Overflow Damage 29 | . . . . . . . . 29 . Projectiles . | . . . . . . . . . . Explosions . | . . . . . . . . . . Melee 29 | . . . . . . . . 29 . Knockbacks . | . . . . . . . . . . Impact . | . . . . . . . . . . Kinetic . | . . . . . . . . . . Secondary . | . . . . . . . . . . Self-Inflicted Damage 31 | . 31 . . . . . . . . Shots 1 | . 1 . . . . . . . . Rammed . | . . . . . . . . . . Targets Rammed . | . . . . . . . . . . Kicked . | . . . . . . . . . . Crushed . | . . . . . . . . . . Highest Temperature 278 | . 150 . 219 111 278 252 22 186 . Average Temperature 65 | . 27 . 100 31 86 90 16 128 . Received Heat Transfer 1269 | . 465 207 99 216 126 102 . 54 . Effects 3 | . . . . . 2 1 . . . Energy Bleed 1 | . . . . . . 1 . . . Interference 2 | . . . . . 2 . . . . Siege Activations . | . . . . . . . . . . Martial Activations . | . . . . . . . . . . Shielding Activations . | . . . . . . . . . . Robots Disrupted . | . . . . . . . . . . Combat Hostiles . | . . . . . . . . . . Robots Corrupted . | . . . . . . . . . . Combat Hostiles . | . . . . . . . . . . Parts Fried 1 | . 1 . . . . . . . . Impact Corruptions . | . . . . . . . . . . Robots Melted 1 | . . . . 1 . . . . . Combat Hostiles 1 | . . . . 1 . . . . . Parts Melted 13 | . 5 3 1 3 1 . . . . Heat Transferred 8167 | . 1234 2331 1295 2308 999 . . . . Parts Sabotaged . | . . . . . . . . . . Parts Stolen . | . . . . . . . . . . Parts Stripped . | . . . . . . . . . . Power Chain Reactions 2 | . 2 . . . . . . . . Alert | -11 -10 -10 -8 -8 -8 -7 -7 -7 -7 ------- Run | Yrd Mat Sub Mat Gar Mat Fac Was Fac Low Maximum Alert Level 2 | . . . . 2 2 1 . . . Low Security (%) 69 | 100 100 . 100 24 3 98 100 100 . Level 1 18 | . . . . 24 71 1 . . . Level 2 12 | . . . . 51 25 . . . . Level 3 . | . . . . . . . . . . Level 4 . | . . . . . . . . . . Level 5 . | . . . . . . . . . . High Security . | . . . . . . . . . . Max Security . | . . . . . . . . . . Peak Influence 613 | 10 122 . 116 613 508 200 . 58 . Initial 298 | . . . . 49 298 200 . . . Average 149 | . 50 . 53 360 317 72 . 10 . Influence Increases 2445 | 20 501 160 166 624 596 264 . 114 . Destroy 0b10 Robot/C 1480 | . 280 100 120 460 360 160 . . . Destroy 0b10 Robot/NC 175 | 20 50 . 10 . 60 25 . 10 . Destroy Leader 306 | . 88 . 30 20 100 68 . . . Allied During Kill 23 | . . . . 23 . . . . . Successful Hack 83 | . 17 . 4 31 13 10 . 8 . Select Force Hacks 30 | . 30 . . . . . . . . Disable Machine 15 | . . . . 15 . . . . . Anti-Garrison Action 50 | . . . . 50 . . . . . Destroy Structure 28 | . 6 . 2 10 3 1 . 6 . Partial Spotted 45 | . . . . . 15 . . 30 . Lose Combat Pursuer 210 | . 30 60 . 15 45 . . 60 . Influence Decreases 2412 | 20 461 200 90 87 767 706 . 61 20 Entered New Map 624 | . . 20 . 27 315 242 . . 20 Time Decay 1702 | 20 451 180 80 . 452 464 . 55 . Lost Part 40 | . 10 . 10 20 . . . . . Lost Ally 40 | . . . . 40 . . . . . Purge Threat 6 | . . . . . . . . 6 . Squads Dispatched 9 | . 4 . . . 1 4 . . . Investigation 3 | . 2 . . . 1 . . . . Extermination 3 | . . . . . . 3 . . . Reinforcement 3 | . 2 . . . . 1 . . . Assault . | . . . . . . . . . . Garrison . | . . . . . . . . . . Intercept . | . . . . . . . . . . Searches Triggered . | . . . . . . . . . . Construction Impeded . | . . . . . . . . . . Haulers Reinforced 1 | . . . . . . 1 . . . Active Scanning Responses . | . . . . . . . . . . Cargo Convoy Interrupts . | . . . . . . . . . . Stealth | -11 -10 -10 -8 -8 -8 -7 -7 -7 -7 --------- Run | Yrd Mat Sub Mat Gar Mat Fac Was Fac Low Distress Signals 4 | . 3 . . . 1 . . . . Communications Jammed . | . . . . . . . . . . Distress Signals . | . . . . . . . . . . Times Spotted 109 | . 22 13 7 23 20 11 6 7 . Peak Tracking Total 6 | . 5 3 6 4 4 2 6 6 . Tactical Retreats 9 | . 1 2 . 1 2 . . 3 . Traps | -11 -10 -10 -8 -8 -8 -7 -7 -7 -7 ------- Run | Yrd Mat Sub Mat Gar Mat Fac Was Fac Low Traps Triggered 10 | . 2 3 . 1 1 3 . . . Indirectly . | . . . . . . . . . . Trap Hack Attempts . | . . . . . . . . . . Triggered . | . . . . . . . . . . Disarmed . | . . . . . . . . . . Reprogrammed . | . . . . . . . . . . Reused . | . . . . . . . . . . Traps Extracted . | . . . . . . . . . . Installed . | . . . . . . . . . . Triggered . | . . . . . . . . . . Machines | -11 -10 -10 -8 -8 -8 -7 -7 -7 -7 ---------- Run | Yrd Mat Sub Mat Gar Mat Fac Was Fac Low Machines Disabled 1 | . . . . 1 . . . . . Max in Single Turn 1 | . . . . 1 . . . . . Garrison Access 1 | . . . . . . 1 . . . Machines Repaired . | . . . . . . . . . . Machines Dismantled . | . . . . . . . . . . Machines Sabotaged . | . . . . . . . . . . Overloaded Fab Kills . | . . . . . . . . . . Hacking | -11 -10 -10 -8 -8 -8 -7 -7 -7 -7 --------- Run | Yrd Mat Sub Mat Gar Mat Fac Was Fac Low Machines Accessed 25 | . 7 1 1 5 5 4 . 2 . Terminals 19 | . 6 . . 5 4 2 . 2 . Fabricators . | . . . . . . . . . . Repair Stations 1 | . . . . . 1 . . . . Recycling Units 1 | . 1 . . . . . . . . Scanalyzers 1 | . . . . . . 1 . . . Garrison Access 2 | . . . 1 . . 1 . . . Total Hacks 63 | . 23 4 1 8 12 10 . 5 . Successful 36 | . 15 4 1 5 6 3 . 2 . Failed 26 | . 8 . . 3 6 6 . 3 . Catastrophic 2 | . . . . . . 1 . 1 . Database Lockouts 1 | . . . . . . 1 . . . Manual 30 | . 13 . . . 10 6 . 1 . Terminals 50 | . 21 . . 8 10 6 . 5 . Fabricators . | . . . . . . . . . . Repair Stations 2 | . . . . . 2 . . . . Recycling Units 2 | . 2 . . . . . . . . Scanalyzers 2 | . . . . . . 2 . . . Garrison Access 3 | . . . 1 . . 2 . . . Terminal Hacks 19 | . 6 4 . 5 2 . . 2 . Record 4 | . . 4 . . . . . . . Prototype ID Bank 1 | . 1 . . . . . . . . Open Door 1 | . . . . 1 . . . . . Level Access Points 1 | . . . . . 1 . . . . Branch Access Points 1 | . . . . . 1 . . . . Emergency Access Points 1 | . . . . 1 . . . . . Alert Level 1 | . 1 . . . . . . . . Unreport Threat 1 | . . . . . . . . 1 . Locate Traps 2 | . 2 . . . . . . . . Recall Extermination 1 | . . . . . . . . 1 . Hauler Manifests 1 | . 1 . . . . . . . . Registered Components 1 | . 1 . . . . . . . . Garrison Registry 1 | . . . . 1 . . . . . Patrol Navigation 1 | . . . . 1 . . . . . Security Stations 1 | . . . . 1 . . . . . Fabricator Hacks . | . . . . . . . . . . Repair Station Hacks 2 | . . . . . 2 . . . . Scan Component 1 | . . . . . 1 . . . . Repair 1 | . . . . . 1 . . . . Recycling Unit Hacks . | . . . . . . . . . . Scanalyzer 1 | . . . . . . 1 . . . Retrieve Study 1 | . . . . . . 1 . . . Garrison Access Hacks 2 | . . . 1 . . 1 . . . Unlock Access 1 | . . . 1 . . . . . . Seal Access 1 | . . . . . . 1 . . . Unauthorized Hacks 12 | . 9 . . . 2 1 . . . Terminals 11 | . 8 . . . 2 1 . . . Botnet 5 | . 2 . . . 2 1 . . . Skim 6 | . 6 . . . . . . . . Fabricators . | . . . . . . . . . . Repair Stations . | . . . . . . . . . . Recycling Units 1 | . 1 . . . . . . . . Tunnel 1 | . 1 . . . . . . . . Scanalyzers . | . . . . . . . . . . Garrison Access . | . . . . . . . . . . Data Cores Recovered 1 | . 1 . . . . . . . . Used . | . . . . . . . . . . Hacking Detections 17 | . 6 . 1 2 4 2 . 2 . Full Trace Events 1 | . . . . 1 . . . . . Feedback Events . | . . . . . . . . . . Feedback Blocked . | . . . . . . . . . . Robot Schematics Acquired . | . . . . . . . . . . Robots Built . | . . . . . . . . . . Authchips . | . . . . . . . . . . Time . | . . . . . . . . . . Total Robot Build Rating . | . . . . . . . . . . Part Schematics Acquired . | . . . . . . . . . . Parts Built . | . . . . . . . . . . Authchips . | . . . . . . . . . . Time . | . . . . . . . . . . Total Part Build Rating . | . . . . . . . . . . Part Studies Acquired 1 | . . . . . . 1 . . . Parts Repaired 1 | . . . . . 1 . . . . Time 26 | . . . . . 26 . . . . Parts Recycled . | . . . . . . . . . . Recycled Matter . | . . . . . . . . . . Retrieved Matter . | . . . . . . . . . . Retrieved Components . | . . . . . . . . . . Parts Scanalyzed . | . . . . . . . . . . Part Schematics Acquired . | . . . . . . . . . . Parts Damaged . | . . . . . . . . . . Bothacking | -11 -10 -10 -8 -8 -8 -7 -7 -7 -7 ------------ Run | Yrd Mat Sub Mat Gar Mat Fac Was Fac Low Used RIF Installer . | . . . . . . . . . . Robots Hacked . | . . . . . . . . . . Non-combat . | . . . . . . . . . . Combat . | . . . . . . . . . . Robot Hacks Applied . | . . . . . . . . . . Relay Couplers Released . | . . . . . . . . . . Fabnet Peak Effective % . | . . . . . . . . . . Robots Rewired 2 | . . . . 2 . . . . . Allies Hacked . | . . . . . . . . . . Hacks Repelled . | . . . . . . . . . . Allies | -11 -10 -10 -8 -8 -8 -7 -7 -7 -7 -------- Run | Yrd Mat Sub Mat Gar Mat Fac Was Fac Low Total Allies 2 | . . . . 2 . . . . . Largest Group 2 | . . . . 2 . . . . . Highest-Rated Group 53 | . . . . 53 . . . . . Highest-Rated Ally 31 | . . . . 31 . . . . . Initial Warlord ECA Mod 2 | . . . . . 2 1 1 1 1 Total Orders . | . . . . . . . . . . Ally Attacks 26 | . . . . 26 . . . . . Total Damage 473 | . . . . 473 . . . . . Kills 6 | . . . . 6 . . . . . Allies Corrupted . | . . . . . . . . . . Allies Melted . | . . . . . . . . . . Intel | -11 -10 -10 -8 -8 -8 -7 -7 -7 -7 ------- Run | Yrd Mat Sub Mat Gar Mat Fac Was Fac Low Active Infowar (turns) 765 | 52 506 . 207 . . . . . . Seismic 765 | 52 506 . 207 . . . . . . Robot Analysis Total . | . . . . . . . . . . Derelict Logs Recovered 3 | . . 3 . . . . . . . Drone Launches . | . . . . . . . . . . Drone Recoveries . | . . . . . . . . . . Exploration | -11 -10 -10 -8 -8 -8 -7 -7 -7 -7 ------------- Run | Yrd Mat Sub Mat Gar Mat Fac Was Fac Low Turns Passed 8452 | 136 1729 2825 251 798 1135 1198 113 267 . Spaces Moved 4915 | 83 910 1502 112 403 570 677 115 543 . Core 360 | 2 . . . . . . 67 291 . Treads 4076 | . 764 1502 112 403 570 677 48 . . Legs 227 | 81 146 . . . . . . . . Wheels . | . . . . . . . . . . Hover . | . . . . . . . . . . Flight 252 | . . . . . . . . 252 . Fastest Speed 29 | 50 120 160 160 160 160 156 50 29 . Average Speed 142 | 118 153 160 160 160 160 156 94 40 . Slowest Speed 240 | 120 190 160 160 240 240 156 160 50 . Overloaded Moves . | . . . . . . . . . . Propulsion Burnouts . | . . . . . . . . . . Robots Hopped 8 | . . . . . . . . 8 . Potential Cave-ins . | . . . . . . . . . . Cave-ins Triggered . | . . . . . . . . . . Exploration Rate (%) 39 | 4 99 71 13 52 39 18 79 17 3 Regions Visited 9 Branch Regions 2 Pre-discovered Areas 2 | . 1 1 . . . . . . . Known Exits Taken 2 | . . . 1 . 1 . . . . Unknown Exits Taken 4 | 1 1 1 . . . . . 1 . Scrap Searched 8 | . . 8 . . . . . . . Spaces Dug 11 | . . 4 . . . 1 . 6 . Terrain Destroyed 16 | . 3 6 . . . 1 . 6 . Melee 7 | . . . . . . 1 . 6 . Projectile 6 | . . 6 . . . . . . . AOE 3 | . 3 . . . . . . . . Terrain Rammed . | . . . . . . . . . . Walls Destroyed . | . . . . . . . . . . Machines Disabled . | . . . . . . . . . . Actions | -11 -10 -10 -8 -8 -8 -7 -7 -7 -7 --------- Run | Yrd Mat Sub Mat Gar Mat Fac Was Fac Low Total 5873 | 105 1088 1843 150 486 727 789 118 567 . Wait 472 | 3 53 287 10 19 27 57 1 15 . Move 4889 | 82 909 1501 111 400 569 677 114 526 . Hop 8 | . . . . . . . . 8 . Pick Up 60 | 7 16 3 2 6 18 6 1 1 . Fast Attach 37 | 7 7 . 2 1 10 4 . 6 . Attach 18 | . 1 2 5 2 2 3 . 3 . Detach 1 | . . . . . . 1 . . . Swap 36 | . 10 3 2 2 14 5 . . . Drop 63 | . 16 3 3 1 32 7 1 . . Fire 258 | 6 76 44 15 33 55 28 1 . . Melee 9 | . . . . . . 1 . 8 . Ram . | . . . . . . . . . . Kick . | . . . . . . . . . . Crush . | . . . . . . . . . . Escape Stasis . | . . . . . . . . . . Rewire 22 | . . . . 22 . . . . . Trap . | . . . . . . . . . . Miscellaneous . | . . . . . . . . . . Route ------- -11/Scrapyard -10/Materials (discovered 6 exits: [*Mat x3] / [*Min x2] / *Sub) -10/Subcaves -8/Materials (discovered 2 exits: Fac / Gar) -8/Garrison (discovered 3 exits: *Mat x3) -8/Materials (discovered 3 exits: *Fac x3) -7/Factory -7/Waste -7/Factory (discovered 2 exits: [*Fac] / [*Low]) -7/Lower Caves History --------- Turn | Location | Event 40 | -11/Scrapyard | Discovered new exit (range 15) 137 | -11/Scrapyard | Entered Materials 309 | -10/Materials | Build established: Mutant 479 | -10/Materials | Discovered new exit (range 9) 637 | -10/Materials | Derelicts attacked the area 775 | -10/Materials | Discovered new exit (range 15) 902 | -10/Materials | Discovered new exit (range 7) 1266 | -10/Materials | Discovered new exit (range 10) 1302 | -10/Materials | Core integrity fell below 50% 1347 | -10/Materials | Discovered new exit (range 9) 1854 | -10/Materials | Discovered new exit (range 9) 1866 | -10/Materials | Entered Subcaves 1867 | -10/Subcaves | A swath of the cavern ceiling suddenly collapsed 1999 | -10/Subcaves | Visited Clippyterm 2004 | -10/Subcaves | Learned Factory garrison access intel 2073 | -10/Subcaves | Shifting Twisted Machinery released Sub. Monowheel 2123 | -10/Subcaves | Learned location of Zion (-6) 2123 | -10/Subcaves | Met a Zionite searching for "candidates" 2457 | -10/Subcaves | Disturbed a concealed Subdweller 3101 | -10/Subcaves | Shifting Twisted Machinery released Sub. Machine Gun 3111 | -10/Subcaves | Shifting Twisted Machinery released Barrage Gun 3155 | -10/Subcaves | Learned location of 1 exit from Materials 3693 | -10/Subcaves | A swath of the cavern ceiling suddenly collapsed 3770 | -10/Subcaves | Learned Materials trap positions 3835 | -10/Subcaves | Learned Materials interactive machine intel 3854 | -10/Subcaves | Core integrity fell below 20% 3861 | -10/Subcaves | Shifting Twisted Machinery released Sub. Monowheel 4301 | -10/Subcaves | Discovered new exit (range 11) 4691 | -10/Subcaves | Entered Materials 4691 | -8/Materials | Evolved 4 slots: Propulsion x1, Utility x2, Weapon x1 4692 | -8/Materials | Identified exit to Factory 4693 | -8/Materials | Loaded intel: 22 trap records 4694 | -8/Materials | Loaded intel: 19 interactive machine locations 4851 | -8/Materials | Identified exit to Garrison 4942 | -8/Materials | Entered Garrison 5091 | -8/Garrison | Discovered new exit (range 44) 5091 | -8/Garrison | Discovered new exit (range 56) 5091 | -8/Garrison | Discovered new exit (range 35) 5112 | -8/Garrison | Triggered checkpoint 5132 | -8/Garrison | Triggered checkpoint 5186 | -8/Garrison | Build established: Gunner 5260 | -8/Garrison | Learned Materials security intel 5346 | -8/Garrison | Attempted to access garrison exit controls, blocked by remote lockdown 5390 | -8/Garrison | Triggered checkpoint 5498 | -8/Garrison | Attempted to access garrison exit controls, blocked by remote lockdown 5534 | -8/Garrison | Triggered checkpoint 5576 | -8/Garrison | Triggered checkpoint 5638 | -8/Garrison | Triggered checkpoint 5740 | -8/Garrison | Entered Materials 5889 | -8/Materials | Repaired Lgt. Treads 6430 | -8/Materials | Build established: Scavenger-Gunner 6875 | -8/Materials | Entered Factory 6875 | -7/Factory | Evolved 2 slots: Propulsion x1, Utility x1 6876 | -7/Factory | Loaded intel: 4 garrison access locations 6918 | -7/Factory | Build established: Gunner 7541 | -7/Factory | Central database locked down 8073 | -7/Factory | Sucked down chute 8073 | -7/Factory | Entered Waste 8088 | -7/Waste | EMP discharged 8088 | -7/Waste | System corruption reached 10% 8092 | -7/Waste | Spotted C-40 Crusher 8126 | -7/Waste | Spotted C-40 Crusher 8148 | -7/Waste | Crushed by Compactor (1 part destroyed, 1 dropped) 8152 | -7/Waste | Crushed by Compactor (1 part destroyed, 1 dropped) 8152 | -7/Waste | Released all parts (9) 8155 | -7/Waste | Spotted C-40 Crusher 8164 | -7/Waste | Spotted C-40 Crusher 8176 | -7/Waste | Spotted C-40 Crusher 8179 | -7/Waste | Discovered new exit (range 16) 8179 | -7/Waste | Spotted C-40 Crusher 8186 | -7/Waste | Entered Factory 8403 | -7/Factory | Discovered new exit (range 6) 8435 | -7/Factory | Discovered new exit (range 14) 8453 | -7/Factory | Entered Lower Caves 8453 | -7/Lower Caves | Self-destructed Last Messages --------------- 08379_ Acquired 24 matter. 08381_ Sneak attack on K-01 Serf. 08381_ K-01 Serf destroyed. 08382_ Extracted 34 matter. 08383_ Acquired 29 matter. 08384_ Acquired Lgt. Ion Engine. 08387_ 6QCLLQ/DJV0S&WFTEKBILV 08387_ Acquired Xenon Bombardment Thruster. 08394_ Connecting with Terminal... >>Alert(Purge) Purged threat record, alert level lowered. >>Recall(Extermination) Establishing remote squad link... No tasked extermination squads found. 08403_ EXIT=FOUND 08406_ System corrupted: Energy discharge (-24). 08435_ EXIT=FOUND 08441_ System corrupted: Heat flow error (+198). LOCATION=UNKNOWN GOAL=ESCAPE Map ----- +----------------------------------------------------+ | ?????????????????????????????????????????????????? | | ?????????????????????????????????????????????????? | | ?????????????????????????????????????????????????? | | ?????????????????????????????????????????????????? | | ?????????????????????????????????????????????????? | | ?????????????????????????????????????????????????? | | ?????????????????????????????????????????????????? | | ?????????????????????????????????????????????????? | | ?????????????????????????????????????????????????? | | ?????????????????????????????????????????????????? | | ???????????????????????# ???????????????????????? | | ??????????????????????? ####???????????????????? | | ??????????????????????? #??????????????????? | | ??????????????????????? ???????????????????? | | ??????????????????????? ???????????????????? | | ??????????????????????? ???????????????????? | | ???????????????????????? ????????????????????? | | ???????????????????????? ????????????????????? | | ???????????????????????? ????????????????????? | | ???????????????????????? ?????????????????????? | | ???????????????????????? ?????????????????????? | | ???????????????????????? ############??????????? | | ????????????????????????# b ##?????????? | | ????????????????????????# ??????????? | | ???????????????????????## #???????????????? | | ???????????????????????# @ Y #???????????????? | | ???????????????????????# #???????????????? | | ???????????????????????## #???????????????? | | ????????????????????????# l #???????????????? | | ????????????????????????### ### ?????????????? | | ???????????????????????????####???? #???????????? | | ?????????????????????????????????????#???????????? | | ?????????????????????????????????????????????????? | | ?????????????????????????????????????????????????? | | ?????????????????????????????????????????????????? | | ?????????????????????????????????????????????????? | | ?????????????????????????????????????????????????? | | ?????????????????????????????????????????????????? | | ?????????????????????????????????????????????????? | | ?????????????????????????????????????????????????? | | ?????????????????????????????????????????????????? | | ?????????????????????????????????????????????????? | | ?????????????????????????????????????????????????? | | ?????????????????????????????????????????????????? | | ?????????????????????????????????????????????????? | | ?????????????????????????????????????????????????? | | ?????????????????????????????????????????????????? | | ?????????????????????????????????????????????????? | | ?????????????????????????????????????????????????? | | ?????????????????????????????????????????????????? | +----------------------------------------------------+ Best States ------------- Heat Dissipation 56 Energy Generation 15 Energy Capacity 280 Matter Stores 300 Matter Capacity 300 Sight Range 16 Terrain Scan Density 10 Armor Coverage 225 Evasion (%) 64 Targeting Accuracy 8 Core Analysis 6 Recoil Reduction 4 Offensive Hacking 20 Item Schematics ----------------- None Robot Schematics ------------------ None Fabricated ------------ Nothing Repaired ---------- Lgt. Treads | 14% | -8/Materials Studied --------- Gatling Laser | -7/Factory | Hacked Alien Tech Used ----------------- None Achievements -------------- None Challenges ------------ None Game ------ Seed TechReflectiveLog Manual? 0 Play Time 00:59:50 Cumulative 164.1 hours Start 2025.12.30 @ 23:50:52 End 2025.12.31 @ 00:53:21 Sessions 1 Manual Loads 0 Difficulty Rogue Special Mode None Game No. 115 Rogue 115 Adventurer 0 Explorer 0 Win Type - Total 2 Types 2/0/0/0/0/0/0/0/0/0 Lore% 48 Gallery% 52 Achievement% 41 Wizard Run 0 Options --------- Layout 2 ASCII 0 Keyboard 0 Movement Mouse Keybinds 0 Fullscreen 2 Font 24/Smallcaps Map View 50x44 Zoom Use 0% Tactical HUD 1 Map Filters NONE Filters NONE Steam 1 RUN: 0abc9a05-3fe4-494a-a4b6-4073eb107288